bitfinex/quotes_ETHUSD_20250724
["timestamp","ask_amount","ask_price","bid_price","bid_amount"]
[1753324802470,4.173,3652.2,3652.1,1.2454]
[1753324802867,0.002,3652.3,3652.2,0.7942]
[1753324803090,4.175,3652.3,3652.2,1.2454]
[1753324808703,0.002,3652.3,3652.2,1.2454]
[1753324808904,4.171,3652.3,3652.2,1.2454]
[1753324809218,4.171,3652.3,3652.2,1.93126455]
[1753324810423,4.171,3652.3,3652.2,4.66934023]
[1753324812033,4.171,3652.3,3652.2,1.93126455]
[1753324814525,4.169,3652.3,3652.2,9.11891352]
[1753324815037,4.169,3652.3,3652.2,4.79714023]
[1753324816041,0.002,3652.3,3652.2,4.79714023]
[1753324823049,0.002,3652.3,3652.2,1.3901]
[1753324823221,0.002,3652.3,3652.2,0.6049]
[1753324823427,0.002,3652.3,3651.9,1.39980001]
[1753324823662,0.002,3652.3,3652.0,0.4681]
[1753324823851,2.73807568,3652.2,3651.9,0.13680001]
[1753324824016,0.03422688,3652.1,3651.9,0.13680001]
[1753324824212,4.164,3652.0,3651.9,0.13680001]
[1753324824413,4.164,3652.0,3651.9,0.60490001]
[1753324828912,4.164,3652.0,3651.9,0.13680001]
[1753324829241,6.90222562,3652.0,3651.9,1e-08]
[1753324829812,2.73813473,3652.2,3651.9,1e-08]
[1753324830013,4.164,3652.1,3651.9,1e-08]
[1753324830517,6.90215106,3652.1,3651.9,1e-08]
[1753324831049,4.164,3652.1,3651.9,0.46810001]
[1753324831266,0.002,3652.3,3651.9,1e-08]
[1753324831547,4.164,3652.0,3651.9,0.77930001]
[1753324832047,4.164,3652.0,3651.9,1.24740001]
[1753324833657,4.164,3652.0,3651.9,0.46810001]
[1753324833840,4.164,3652.0,3651.9,1e-08]
[1753324834346,4.164,3652.0,3651.9,0.46810001]
[1753324834648,0.1368,3652.1,3651.9,0.46810001]
[1753324834816,4.164,3652.0,3651.9,1e-08]
[1753324835314,4.164,3652.0,3651.9,0.46810001]
[1753324836146,4.164,3652.0,3651.9,3.89192401]
[1753324836386,0.002,3652.3,3652.2,2.73807568]
[1753324836647,4.166,3652.3,3652.2,3.52437568]
[1753324836852,4.166,3652.3,3652.2,3.99247568]
[1753324837850,4.166,3652.3,3652.2,1.2544]
[1753324838046,0.002,3652.3,3652.2,1.2544]
[1753324838430,0.002,3652.3,3652.2,5.17997422]
[1753324838628,0.002,3652.3,3652.2,5.31677422]
[1753324841152,4.166,3652.3,3652.2,5.31677422]
[1753324841452,4.166,3652.3,3652.2,1.3912]
[1753324841658,4.166,3652.3,3652.2,4.12927568]
[1753324842431,4.166,3652.3,3652.2,3.34297568]
[1753324842637,4.166,3652.3,3652.2,0.6049]
[1753324842838,4.166,3652.3,3652.2,3.34297568]
[1753324843368,0.002,3652.3,3652.2,0.6049]
[1753324843570,0.002,3652.3,3652.2,3.34297568]
[1753324844734,0.002,3652.3,3652.2,0.6049]
[1753324845827,0.002,3652.3,3652.2,3.34297568]
[1753324846028,0.002,3652.3,3652.2,4.09960383]
[1753324846652,0.002,3652.3,3652.2,0.6049]
[1753324846979,0.002,3652.3,3652.2,0.1368]
[1753324847143,0.036225,3652.3,3652.0,0.001]
[1753324847636,0.036225,3652.3,3652.1,0.4383]
[1753324847637,0.002,3652.3,3652.1,0.4383]
[1753324847837,0.002,3652.3,3652.0,0.001]
[1753324848032,0.002,3652.3,3652.2,1.2151]
[1753324848642,0.002,3652.3,3652.2,4.26339794]
[1753324848838,4.166,3652.3,3652.2,4.26339794]
[1753324850374,0.002,3652.3,3652.2,4.26339794]
[1753324851678,0.002,3652.3,3652.2,4.82661857]
[1753324853343,0.002,3652.3,3652.2,8.97739794]
[1753324853989,0.002,3652.3,3652.2,4.81339794]
[1753324860683,0.002,3652.3,3652.2,4.37509794]
[1753324860885,0.002,3652.3,3652.2,2.73807568]
[1753324861809,0.002,3652.3,3652.2,3.93027568]
[1753324865012,0.002,3652.3,3652.2,2.73807568]
[1753324866485,0.002,3652.3,3652.2,7.49814897]
[1753324867679,0.002,3652.3,3652.2,8.28304897]
[1753324868019,0.002,3652.3,3652.2,9.81525025]
[1753324870337,0.002,3652.3,3652.2,14.52825025]
[1753324872129,0.002,3652.3,3652.2,10.36525025]
[1753324873033,0.002,3652.3,3652.2,14.52825025]
[1753324877552,1e-08,3652.3,3652.2,14.52825025]
[1753324877838,1e-08,3652.6,3652.5,4.08085078]
[1753324878025,1e-08,3652.6,3652.5,12.56562407]
[1753324878420,1e-08,3652.6,3652.5,13.03102407]
[1753324883699,1e-08,3652.6,3652.5,2.73785078]
[1753324883928,1e-08,3652.6,3652.5,6.89985078]
[1753324884142,1e-08,3652.6,3652.5,7.44985078]
[1753324884731,1e-08,3652.6,3652.5,2.73785078]
[1753324887618,1e-08,3652.6,3652.5,2.87465078]
[1753324889528,0.76850001,3652.6,3652.5,0.1368]
[1753324890423,0.76850001,3652.6,3652.3,0.1368]
[1753324890855,0.76850001,3652.6,3652.3,2.87479994]
[1753324891446,0.76850001,3652.6,3652.3,0.1368]
[1753324891653,0.76850001,3652.6,3652.5,2.73785078]
[1753324892026,1e-08,3652.6,3652.5,2.87465078]
[1753324897775,1e-08,3652.6,3652.5,10.07711739]
[1753324897966,1e-08,3652.6,3652.5,10.06390238]
[1753324899292,1e-08,3652.6,3652.5,5.27672909]
[1753324899451,1e-08,3652.6,3652.5,3.68675078]
[1753324899777,1e-08,3652.6,3652.5,3.42465078]
[1753324899986,0.80600001,3652.6,3652.5,2.87465078]
[1753324900478,0.80600001,3652.6,3652.5,0.1368]
[1753324900680,1.20410001,3652.6,3652.1,2.73809413]
[1753324900853,0.3981,3652.5,3652.3,0.1368]
[1753324901180,0.3981,3652.5,3652.0,0.001]
[1753324901181,3.54254981,3652.4,3652.0,0.001]
[1753324901352,3.50841802,3652.3,3652.0,0.001]
[1753324901552,0.03422594,3652.2,3652.0,0.001]
[1753324901774,0.43232594,3652.2,3652.0,0.001]
[1753324901978,0.3981,3652.2,3652.0,0.001]
[1753324902184,0.3981,3652.2,3652.0,2.73922381]
[1753324902380,0.3981,3652.2,3652.0,0.001]
[1753324902886,0.7704,3652.3,3652.1,2.73815065]
[1753324903587,0.7704,3652.3,3652.0,2.73920215]
[1753324903782,0.7704,3652.3,3652.2,2.73807568]
[1753324904252,0.13680001,3652.6,3652.0,2.87601786]
[1753324904253,0.80450001,3652.6,3652.5,2.73785078]
[1753324908984,0.7786,3652.5,3652.2,2.73802263]
[1753324909390,1.1767,3652.5,3652.2,2.73802263]
[1753324910163,1.1767,3652.5,3652.1,2.87593292]
[1753324910562,1.1767,3652.5,3652.2,2.73806694]
[1753324911000,1.1767,3652.5,3652.1,0.1378]
[1753324911294,0.7786,3652.5,3652.2,2.738074]
[1753324911698,0.7786,3652.5,3652.1,4.45957329]
[1753324912008,1e-08,3652.6,3652.1,4.45957329]
[1753324912009,1e-08,3652.6,3652.5,2.73785078]
[1753324912157,0.8130222,3652.6,3652.4,0.1368]
[1753324912360,0.3981,3652.5,3652.1,2.87594051]
[1753324912588,0.77880001,3652.6,3652.1,2.87594051]
[1753324912858,0.3981,3652.4,3652.1,2.87594051]
[1753324913595,0.3981,3652.4,3652.1,2.87592263]
[1753324914870,0.77880001,3652.6,3652.3,2.73796914]
[1753324915066,0.3981,3652.5,3652.1,0.1378]
[1753324918103,0.3981,3652.5,3652.1,2.87594184]
[1753324918466,0.3981,3652.5,3652.2,2.73807149]
[1753324918665,0.3981,3652.5,3652.1,2.87592687]
[1753324919408,3.77880001,3652.6,3652.1,2.87592687]
[1753324919804,2.73794132,3652.4,3652.1,0.1378]
[1753324920004,0.7689,3652.2,3652.1,0.001]
[1753324920705,1.167,3652.2,3652.1,0.001]
[1753324922216,4.163,3652.4,3652.1,0.001]
[1753324922381,4.163,3652.4,3652.1,2.73912047]
[1753324922583,4.163,3652.4,3652.2,2.7380357]
[1753324922779,4.163,3652.4,3652.1,0.001]
[1753324923194,0.3981,3652.3,3652.1,0.001]
[1753324925910,4.2998,3652.4,3652.1,0.001]
[1753324926078,0.3981,3652.3,3652.1,0.001]
[1753324926410,1.179,3652.3,3652.1,0.001]
[1753324926610,3.52720162,3652.2,3652.1,0.001]
[1753324926811,3.92530162,3652.2,3652.1,0.001]
[1753324927180,1.18722594,3652.2,3652.1,0.001]
[1753324927517,1.153,3652.2,3652.1,0.001]
[1753324929205,3.89107568,3652.2,3652.1,0.001]
[1753324929496,1.153,3652.2,3652.1,0.001]
[1753324930717,0.7549,3652.2,3652.1,0.001]
[1753324931033,1.153,3652.2,3652.1,0.001]
[1753324931219,7.02787568,3652.2,3652.1,0.001]
[1753324932125,4.2898,3652.2,3652.1,0.001]
[1753324932483,7.02787568,3652.2,3652.1,0.001]
[1753324933918,8.4528,3652.2,3652.1,0.001]
[1753324934237,3.8917,3652.2,3652.1,2.73915065]
[1753324934417,4.164,3652.2,3652.1,0.4466]
[1753324934789,4.164,3652.2,3652.1,3.18475065]
[1753324934985,4.164,3652.2,3652.1,4.34613231]
[1753324935420,4.164,3652.2,3652.1,5.16053231]
[1753324938407,1e-08,3652.6,3652.3,2.73793639]
[1753324938408,4.164,3652.4,3652.3,2.73793639]
[1753324938609,4.164,3652.4,3652.3,3.18353639]
[1753324941257,1e-08,3652.6,3652.5,2.73785078]
[1753324941454,4.16300001,3652.6,3652.5,3.34499141]
[1753324941614,4.16300001,3652.6,3652.5,3.79059141]
[1753324941817,4.16300001,3652.6,3652.5,3.92739141]
[1753324943342,4.16300001,3652.6,3652.5,0.1368]
[1753324943556,4.16300001,3652.6,3652.1,0.8154]
[1753324943712,4.16300001,3652.6,3652.4,2.73792496]
[1753324946450,0.8021,3652.5,3652.1,0.001]
[1753324946613,0.8021,3652.5,3652.1,2.73913322]
[1753324947552,0.8021,3652.5,3652.1,0.001]
[1753324947718,0.03422407,3652.4,3652.1,0.001]
[1753324948119,0.43232407,3652.4,3652.1,0.001]
[1753324948523,0.3981,3652.3,3652.1,0.001]
[1753324948848,4.19722594,3652.2,3652.1,0.001]
[1753324949051,4.2998,3652.2,3652.1,0.001]
[1753324949933,4.163,3652.2,3652.1,0.4466]
[1753324952559,4.163,3652.2,3652.1,0.001]
[1753324952854,4.19722594,3652.2,3652.1,0.001]
[1753324953460,6.93530162,3652.2,3652.1,0.001]
[1753324953755,6.90107568,3652.2,3652.1,0.001]
[1753324954127,4.163,3652.2,3652.1,0.001]
[1753324954456,6.93530162,3652.2,3652.1,0.001]
[1753324954657,4.163,3652.2,3652.1,0.001]
[1753324955352,4.163,3652.2,3652.1,0.4466]
[1753324956057,4.163,3652.2,3652.1,0.001]
[1753324957725,4.163,3652.2,3652.1,0.4466]
[1753324960538,4.9359,3652.2,3652.1,0.001]
[1753324960740,10.67397568,3652.2,3652.1,0.001]
[1753324960942,7.9359,3652.2,3652.1,0.001]
[1753324961143,10.67397568,3652.2,3652.1,0.001]
[1753324961951,7.9359,3652.2,3652.1,0.001]
[1753324963164,7.163,3652.2,3652.1,0.001]
[1753324963860,9.90107568,3652.2,3652.1,0.001]
[1753324964268,10.29917568,3652.2,3652.1,0.001]
[1753324964767,10.65427568,3652.2,3652.1,0.001]
[1753324965264,11.05237568,3652.2,3652.1,0.001]
[1753324966970,41.05237568,3652.2,3652.1,0.001]
[1753324967170,40.65427568,3652.2,3652.1,0.001]
[1753324969653,37.9162,3652.2,3652.1,0.001]
[1753324969856,10.65427568,3652.2,3652.1,0.001]
[1753324975842,40.65427568,3652.2,3652.1,0.001]
[1753324976071,41.05237568,3652.2,3652.1,0.001]
[1753324978760,40.65427568,3652.2,3652.1,0.001]
[1753324979070,10.69427568,3652.2,3652.1,0.001]
[1753324979266,9.94107568,3652.2,3652.1,0.001]
[1753324979665,3.0,3652.2,3652.1,0.001]
[1753324979846,7.203,3652.2,3652.1,0.001]
[1753324980052,7.203,3652.2,3652.1,0.4657]
[1753324981465,7.203,3652.2,3652.1,0.001]
[1753324983307,7.203,3652.2,3652.1,0.4657]
[1753324984484,7.2,3652.2,3652.1,0.4657]
[1753324985165,7.2,3652.2,3652.1,0.001]
[1753324986496,39.93807568,3652.2,3652.1,0.001]
[1753324987655,41.14777568,3652.2,3652.1,0.001]
[1753324988488,40.74967568,3652.2,3652.1,0.001]
[1753324990285,41.14777568,3652.2,3652.1,0.001]
[1753324993993,42.08333492,3652.2,3652.1,0.001]
[1753324994308,13.1639186,3652.2,3652.1,0.001]
[1753324994459,57.6639186,3652.2,3652.1,0.001]
[1753324994852,56.92492981,3652.2,3652.1,0.001]
[1753324995057,57.31910607,3652.2,3652.1,0.001]
[1753324995257,57.52650558,3652.2,3652.1,0.001]
[1753324995991,56.19677008,3652.2,3652.1,0.001]
[1753324996158,57.52564339,3652.2,3652.1,0.001]
[1753324996501,57.66285151,3652.2,3652.1,0.001]
[1753324997057,27.66285151,3652.2,3652.1,0.001]
[1753324997291,56.92458856,3652.2,3652.1,0.001]
[1753324999659,52.38299367,3652.2,3652.1,0.001]
[1753324999871,55.96949416,3652.2,3652.1,0.001]
[1753325002175,55.83228604,3652.2,3652.1,0.001]
[1753325002385,54.43007568,3652.2,3652.1,0.001]
[1753325002577,24.43007568,3652.2,3652.1,0.4705]
[1753325002885,6.93007568,3652.2,3652.1,0.4705]
[1753325003199,6.581,3652.4,3652.1,0.4705]
[1753325003386,0.1368,3652.3,3652.2,0.7614]
[1753325003589,7.3268,3652.3,3652.2,1.2309]
[1753325003763,0.1368,3652.3,3652.2,3.96897568]
[1753325003969,4.19,3652.3,3652.2,3.9689673]
[1753325004390,4.19,3652.3,3652.2,1.2309]
[1753325004978,4.19,3652.3,3652.2,3.96897568]
[1753325005182,4.19,3652.3,3652.2,1.91550649]
[1753325005784,6.92802719,3652.3,3652.1,0.001]
[1753325006070,7.06482719,3652.3,3652.1,0.001]
[1753325006270,2.77230162,3652.2,3652.1,0.001]
[1753325006495,35.73807568,3652.2,3652.1,0.001]
[1753325008703,3.0,3652.2,3652.1,0.001]
[1753325008904,5.73807568,3652.2,3652.1,0.001]
[1753325010011,3.0,3652.2,3652.1,0.001]
[1753325010311,3.0,3652.2,3652.1,0.4705]
[1753325012697,36.57920162,3652.2,3652.1,0.001]
[1753325012911,36.54497568,3652.2,3652.1,0.001]
[1753325013590,6.54497568,3652.2,3652.1,0.001]
[1753325013790,36.54497568,3652.2,3652.1,0.001]
[1753325014718,35.73807568,3652.2,3652.1,0.001]
[1753325017829,33.0,3652.2,3652.1,0.4705]
[1753325018035,35.73807568,3652.2,3652.1,0.4705]
[1753325018184,3.0,3652.2,3652.1,0.4705]
[1753325018385,3.0,3652.2,3652.1,1.2652]
[1753325018586,1e-08,3652.6,3652.2,2.73807568]
[1753325018807,4.187,3652.5,3652.2,1.15743631]
[1753325019122,3.0,3652.4,3652.3,3.20748262]
[1753325019326,3.0,3652.4,3652.3,2.73798262]
[1753325019896,3.0,3652.4,3652.3,3.17128262]
[1753325020325,1e-08,3652.6,3652.3,0.4333]
[1753325020505,7.187,3652.5,3652.4,1.2504]
[1753325025452,4.187,3652.5,3652.4,1.2504]
[1753325025943,4.187,3652.5,3652.4,1.93682734]
[1753325026237,4.187,3652.5,3652.3,0.1368]
[1753325026437,4.187,3652.5,3652.3,0.5701]
[1753325028046,4.187,3652.5,3652.4,0.4333]
[1753325029250,2.73792574,3652.4,3652.3,0.1368]
[1753325029447,0.03422407,3652.4,3652.1,0.757]
[1753325029647,4.182,3652.3,3652.1,0.757]
[1753325029851,4.182,3652.2,3652.1,0.757]
[1753325030350,4.182,3652.2,3652.1,1.1903]
[1753325032351,4.182,3652.2,3652.1,0.4343]
[1753325032971,6.92007568,3652.2,3652.1,0.001]
[1753325034054,1e-08,3652.6,3652.1,0.4343]
[1753325034274,3.0,3652.4,3652.2,3.5507643]
[1753325034452,4.18,3652.3,3652.2,3.5507643]
[1753325034654,4.18,3652.3,3652.2,0.8127]
[1753325035087,4.18,3652.3,3652.2,3.98407568]
[1753325035641,4.18,3652.3,3652.2,1.246]
[1753325035842,4.18,3652.3,3652.2,3.98407568]
[1753325036591,1e-08,3652.6,3652.2,1.91842787]
[1753325036738,4.181,3652.5,3652.3,0.4333]
[1753325037072,4.181,3652.5,3652.4,2.73792574]
[1753325037577,4.181,3652.5,3652.4,0.4333]
[1753325037745,4.181,3652.5,3652.4,3.17122574]
[1753325037948,1e-08,3652.6,3652.5,2.73785078]
[1753325038254,4.18000001,3652.6,3652.5,3.98325078]
[1753325039378,4.18000001,3652.6,3652.5,4.12005078]
[1753325040278,1e-08,3652.6,3652.5,4.12005078]
[1753325040468,1e-08,3652.6,3652.5,4.80584843]
[1753325040669,1e-08,3652.6,3652.5,4.81906344]
[1753325040871,1e-08,3652.6,3652.5,5.36906344]
[1753325041375,1e-08,3652.6,3652.5,9.67621831]
[1753325042650,1e-08,3652.6,3652.5,4.80584843]
[1753325045150,1e-08,3652.6,3652.5,5.36906344]
[1753325045603,1e-08,3652.6,3652.5,5.35584843]
[1753325046361,1e-08,3652.6,3652.5,9.53484843]
[1753325051298,1e-08,3652.6,3652.5,15.75476439]
[1753325052392,1e-08,3652.6,3652.5,9.53084843]
[1753325053582,1e-08,3652.6,3652.5,8.98084843]
[1753325054198,1e-08,3652.6,3652.5,9.53084843]
[1753325056092,1e-08,3652.6,3652.5,15.75076439]
[1753325059995,1e-08,3652.6,3652.5,9.52784843]
[1753325060798,1e-08,3652.6,3652.5,5.35584843]
[1753325060977,1e-08,3652.6,3652.5,9.52884843]
[1753325061181,1e-08,3652.6,3652.5,5.35584843]
[1753325061482,1e-08,3652.6,3652.5,7.73344843]
[1753325062022,1e-08,3652.6,3652.5,8.16214843]
[1753325062182,1e-08,3652.6,3652.5,4.53914843]
[1753325062515,1e-08,3652.6,3652.5,9.51334843]
[1753325064310,1e-08,3652.6,3652.5,9.51234843]
[1753325065316,1e-08,3652.6,3652.5,2.87465078]
[1753325066316,1e-08,3652.6,3652.5,0.1368]
[1753325066620,1e-08,3652.6,3652.5,2.87465078]
[1753325066817,1e-08,3652.6,3652.5,0.1368]
[1753325067726,1e-08,3652.6,3652.5,2.87465078]
[1753325068791,1e-08,3652.6,3652.5,0.1368]
[1753325069428,1e-08,3652.6,3652.5,2.88786579]
[1753325069631,1e-08,3652.6,3652.5,2.87465078]
[1753325070788,1e-08,3652.6,3652.5,3.31656579]
[1753325070990,1e-08,3652.6,3652.5,3.30335078]
[1753325072107,1e-08,3652.6,3652.5,2.87465078]
[1753325072806,1e-08,3652.6,3652.5,3.30335078]
[1753325073007,1e-08,3652.6,3652.5,4.40672961]
[1753325074733,1e-08,3652.6,3652.5,4.41994462]
[1753325075098,1e-08,3652.6,3652.5,4.40672961]
[1753325076032,1e-08,3652.6,3652.5,2.87465078]
[1753325078625,0.82680001,3652.6,3652.4,2.73786308]
[1753325078938,0.82680001,3652.6,3652.5,2.73785078]
[1753325079438,1e-08,3652.6,3652.5,2.73785078]
[1753325080937,1e-08,3652.6,3652.5,2.87465078]
[1753325081653,1e-08,3652.6,3652.5,2.87565078]
[1753325084058,1e-08,3652.6,3652.5,3.30675078]
[1753325087875,1e-08,3652.6,3652.5,2.87565078]
[1753325089383,1e-08,3652.6,3652.5,0.1378]
[1753325089540,1e-08,3652.6,3652.5,2.73885078]
[1753325089735,1e-08,3652.6,3652.5,2.87565078]
[1753325089984,1e-08,3652.6,3652.5,3.16995078]
[1753325090281,1e-08,3652.6,3652.5,3.30675078]
[1753325090993,0.81180001,3652.6,3652.5,0.001]
[1753325092068,1.20990001,3652.6,3652.5,0.001]
[1753325092662,0.81180001,3652.6,3652.5,0.001]
[1753325094548,1.20990001,3652.6,3652.5,0.001]
[1753325095246,1.34670001,3652.6,3652.5,0.001]
[1753325095549,4.08447584,3652.6,3652.5,0.001]
[1753325095755,4.59456937,3652.6,3652.5,0.001]
[1753325095961,4.08447584,3652.6,3652.5,0.001]
[1753325099768,34.08447584,3652.6,3652.5,0.001]
[1753325101083,33.68637584,3652.6,3652.5,0.001]
[1753325101256,0.94860001,3652.6,3652.5,0.001]
[1753325101461,4.99680001,3652.6,3652.5,0.001]
[1753325101991,4.18500001,3652.6,3652.5,0.001]
[1753325102493,2.73777584,3652.6,3652.5,0.001]
[1753325102658,4.18600001,3652.6,3652.5,0.001]
[1753325103798,6.92377584,3652.6,3652.5,0.001]
[1753325103999,10.67897584,3652.6,3652.5,0.001]
[1753325104180,41.07707584,3652.6,3652.5,0.001]
[1753325111498,11.07707584,3652.6,3652.5,0.001]
[1753325111703,41.07707584,3652.6,3652.5,0.001]
[1753325111902,36.49297584,3652.6,3652.5,0.001]
[1753325112068,10.67697584,3652.6,3652.5,0.001]
[1753325112263,6.49297584,3652.6,3652.5,0.001]
[1753325112463,10.67697584,3652.6,3652.5,0.001]
[1753325113201,6.49297584,3652.6,3652.5,0.001]
[1753325113707,10.67597584,3652.6,3652.5,0.001]
[1753325114897,6.49297584,3652.6,3652.5,0.001]
[1753325115080,10.67597584,3652.6,3652.5,0.001]
[1753325116912,40.67597584,3652.6,3652.5,0.001]
[1753325118890,10.67597584,3652.6,3652.5,0.001]
[1753325119204,40.67597584,3652.6,3652.5,0.001]
[1753325120644,41.07407584,3652.6,3652.5,0.001]
[1753325122829,40.67597584,3652.6,3652.5,0.001]
[1753325127942,39.92077584,3652.6,3652.5,0.001]
[1753325129202,5.73777584,3652.6,3652.5,0.001]
[1753325129406,9.91477584,3652.6,3652.5,0.001]
[1753325129605,5.87457584,3652.6,3652.5,0.001]
[1753325129838,10.05157584,3652.6,3652.5,0.4589]
[1753325133547,7.31380001,3652.6,3652.5,0.4589]
[1753325133749,10.05057584,3652.6,3652.5,0.4589]
[1753325136253,3.13680001,3652.6,3652.5,0.001]
[1753325136411,4.17400001,3652.6,3652.5,1.2528]
[1753325138356,1e-08,3652.6,3652.5,1.2528]
[1753325138528,4.17400001,3652.6,3652.5,1.2528]
[1753325140164,1e-08,3652.6,3652.5,3.99065078]
[1753325140345,4.17300001,3652.6,3652.5,3.99065078]
[1753325140527,4.17300001,3652.6,3652.5,4.12745078]
[1753325140733,4.17300001,3652.6,3652.5,4.81409335]
[1753325142073,1e-08,3652.6,3652.5,4.81409335]
[1753325142372,4.17300001,3652.6,3652.5,4.81409335]
[1753325142834,1e-08,3652.6,3652.5,4.81409335]
[1753325143438,1e-08,3652.6,3652.5,9.68558324]
[1753325144068,1e-08,3652.6,3652.5,5.36409335]
[1753325145969,1e-08,3652.6,3652.5,5.37730836]
[1753325147977,1e-08,3652.6,3652.5,5.36409335]
[1753325148272,1e-08,3652.6,3652.5,5.37730836]
[1753325148869,1e-08,3652.6,3652.5,9.54830836]
[1753325149040,1e-08,3652.6,3652.5,9.53509335]
[1753325149940,1e-08,3652.6,3652.5,12.53509335]
[1753325154778,1e-08,3652.6,3652.5,17.24509335]
[1753325157584,1e-08,3653.1,3653.0,2.73747604]
[1753325157883,1e-08,3653.1,3653.0,9.15460462]
[1753325158091,1e-08,3653.1,3653.0,9.14139898]
[1753325158246,1e-08,3653.1,3653.0,14.46658887]
[1753325160178,1e-08,3653.1,3653.0,17.46658887]
[1753325160385,6.58,3654.5,3653.8,8.40526656]
[1753325160704,0.789,3654.7,3653.8,13.68948953]
[1753325161086,0.789,3654.7,3653.8,14.27998953]
[1753325162206,0.789,3654.7,3653.8,5.78849964]
[1753325162498,0.042,3653.9,3653.8,5.78849964]
[1753325163379,0.042,3653.9,3653.8,10.10998953]
[1753325164279,0.042,3653.9,3653.8,8.70789964]
[1753325164480,0.042,3653.9,3653.8,0.1368]
[1753325164699,0.042,3653.9,3653.8,2.87367667]
[1753325165606,0.042,3653.9,3653.8,0.1368]
[1753325166402,0.042,3653.9,3653.8,2.87367667]
[1753325166776,0.042,3653.9,3653.8,0.1368]
[1753325167208,0.042,3653.9,3653.8,2.87367667]
[1753325167409,0.042,3653.9,3653.8,0.1368]
[1753325167610,0.8496,3653.9,3653.8,0.1368]
[1753325167910,0.8076,3653.8,3653.5,2.73704981]
[1753325168103,0.8076,3653.8,3653.3,0.1368]
[1753325168306,0.8076,3653.8,3653.3,0.5905]
[1753325168510,0.8076,3653.8,3653.3,3.32773378]
[1753325168692,0.8076,3653.8,3653.4,2.73717632]
[1753325169008,0.8076,3653.8,3653.6,2.87381788]
[1753325169816,0.8076,3653.8,3653.7,2.73695158]
[1753325170013,0.042,3653.9,3653.8,2.73687667]
[1753325170212,0.042,3653.9,3653.8,2.87367667]
[1753325171213,0.042,3653.9,3653.8,0.1368]
[1753325172415,1.265,3653.9,3653.8,0.1368]
[1753325172610,4.00180177,3653.9,3653.6,0.1368]
[1753325172910,4.00180177,3653.9,3652.9,1.8268]
[1753325172911,0.43231095,3653.8,3652.9,2.73754818]
[1753325173076,3.13502517,3653.8,3653.4,0.1368]
[1753325173279,0.3981,3653.7,3653.4,0.1368]
[1753325173699,0.8669,3653.9,3653.4,0.1368]
[1753325174294,0.8669,3653.9,3653.4,0.6051]
[1753325174685,0.8669,3653.9,3653.5,2.73709214]
[1753325174882,0.8669,3653.9,3653.4,3.34227364]
[1753325175298,0.8669,3653.9,3653.4,3.34225046]
[1753325176519,0.8669,3653.9,3653.4,0.1368]
[1753325176816,4.169,3654.3,3653.4,0.1368]
[1753325176817,6.617,3654.9,3654.6,2.73621863]
[1753325177040,0.04,3654.9,3654.8,2.73612783]
[1753325178327,0.04,3654.9,3654.8,3.20442783]
[1753325178728,0.04,3654.9,3654.8,2.73612783]
[1753325181906,0.04,3654.9,3654.8,3.20442783]
[1753325183327,0.04,3654.9,3654.8,4.30850147]
[1753325183629,0.04,3654.9,3654.8,4.33586274]
[1753325185129,0.04,3654.9,3654.8,4.30850147]
[1753325186700,0.04,3654.9,3654.8,4.44530147]
[1753325188410,0.042,3654.9,3654.8,4.44530147]
[1753325189629,0.042,3654.9,3654.8,3.97700147]
[1753325189806,0.042,3654.9,3654.8,2.87292783]
[1753325191032,0.042,3654.9,3654.8,7.19441772]
[1753325192199,0.042,3654.9,3654.8,2.87292783]
[1753325193240,0.042,3654.9,3654.8,7.19441772]
[1753325193413,0.042,3654.9,3654.8,7.66271772]
[1753325193618,0.042,3654.9,3654.8,8.78188136]
[1753325195441,1e-08,3654.9,3654.8,9.33188136]
[1753325195618,1e-08,3654.9,3654.8,10.16278136]
[1753325200143,1e-08,3654.9,3654.8,5.37299147]
[1753325200341,1e-08,3654.9,3654.8,10.13708136]
[1753325204339,1e-08,3654.9,3654.8,8.75618136]
[1753325208165,0.002,3655.7,3655.6,2.73552905]
[1753325208458,0.002,3655.7,3655.6,7.05701894]
[1753325208649,0.002,3655.7,3655.6,7.19301894]
[1753325210170,0.002,3655.7,3655.6,8.67274225]
[1753325211649,0.002,3655.7,3655.6,2.87152905]
[1753325212969,0.4001,3655.7,3655.6,2.73552905]
[1753325213857,4.169,3655.7,3655.6,2.73552905]
[1753325214036,4.169,3655.7,3655.6,2.87152905]
[1753325214734,0.002,3655.7,3655.6,2.87152905]
[1753325214936,4.169,3655.7,3655.6,2.87152905]
[1753325222885,4.6944,3655.7,3655.6,0.136]
[1753325223069,4.6944,3655.7,3655.4,2.73567872]
[1753325223070,0.5274,3655.7,3655.4,2.73567872]
[1753325223382,4.7034,3655.7,3655.4,2.73567872]
[1753325223881,5.1015,3655.7,3655.4,2.73567872]
[1753325224082,5.1015,3655.7,3655.3,7.05718105]
[1753325224259,0.3981,3655.6,3655.4,2.73566607]
[1753325224584,4.7034,3655.7,3655.4,2.73566607]
[1753325224794,4.7034,3655.7,3654.1,0.001]
[1753325224795,4.178,3655.7,3654.1,0.001]
[1753325224944,3.5254,3655.0,3654.2,2.73657708]
[1753325225142,3.5254,3655.0,3654.1,4.32248989]
[1753325225143,0.3981,3654.9,3654.8,2.73612783]
[1753325225345,0.5254,3655.0,3654.9,2.73605296]
[1753325225569,4.7124,3655.0,3654.9,7.05754285]
[1753325225739,4.7124,3655.0,3654.9,2.73605296]
[1753325226073,4.7124,3655.0,3654.5,2.73628286]
[1753325226280,4.7124,3655.0,3654.7,2.73614629]